Workbook

Sheet Eingabe - Diagramm
B2: Kanton St.Gallen Sicherheits- und Justizdepartement Strassenverkehrs- und Schifffahrtsamt Unfallanalysen
B3: Beurteilung von Abstandsmessungen durch die Polizei:
B5: Eingaben:
B7: Fahrzeug vorne: | H7: Fahrzeug hinten:
B9: Geschwindigkeit: | H9: Abstand:
B10: Fahrzeugart: | H10: Fahrzeugart:
B11: Betriebsgewicht: | E11: 1000 | F11: kg | H11: Betriebsgewicht: | K11: 1000 | L11: kg
B13: Fahrbahnzustand:
F15: Reaktionszeit: (für beide Fahrzeuglenker gleich) | K15: 1 | L15: s
B17: =IF(Berechnungen!R89=TRUE,"Kein Aufprall!","Zusammenstoss!") -> Kein Aufprall!
B22: Resultate: | F22: entspricht Abstandszeit: | J22: =('Dropdown-Daten'!H51/('Dropdown-Daten'!H50/3.6)) -> 1.863529412 | K22: s
B51: Aufprallgeschwindigkeit: | E51: Fahrz. 1 | G51: Fahrz. 2 | H51: Differenz
E52: =Berechnungen!Q87 -> 0 | G52: =Berechnungen!S87 -> 0 | H52: =G52-E52 -> 0
B57: © Erich Peter, Dipl.-Ing. FH / Raphael Rey / 2011 ©

Sheet Dropdown-Daten (hidden)
B1: 30 | D1: 2 | F1: Personenwagen | H1: Trocken
B2: 35 | D2: 4 | F2: Lieferwagen | H2: Nass
B3: 40 | D3: 6 | F3: Lastwagen
B4: 45 | D4: 8
B5: 50 | D5: 10
B6: 55 | D6: 12
B7: 60 | D7: 14
B8: 65 | D8: 16
B9: 70 | D9: 18
B10: 75 | D10: 20
B11: 80 | D11: 22
B12: 85 | D12: 24
B13: 90 | D13: 26
B14: 95 | D14: 28
B15: 100 | D15: 30
B16: 105 | D16: 32
B17: 110 | D17: 34
B18: 115 | D18: 36
B19: 120 | D19: 38
B20: 125 | D20: 40
B21: 130 | D21: 42
B22: 135 | D22: 44
B23: 140 | D23: 46
B24: 145 | D24: 48
B25: 150 | D25: 50
B26: 155 | D26: 52
B27: 160 | D27: 54
B28: 165 | D28: 56
B29: 170 | D29: 58
B30: 175 | D30: 60
B31: 180 | D31: 62
D32: 64
D33: 66
D34: 68
D35: 70
L46: Erstes Fahrzeug
L48: PKW | M48: Lieferwagen | N48: LKW
B49: Zellverknüpfungen | D49: Fahrz. 1 | F49: Fahrz. 2 | K49: t | L49: =AND(D53=1,D52=1) -> FALSE | M49: =AND(D53=1,D52=2) -> FALSE | N49: =AND(D53=1,D52=3) -> FALSE
B50: Geschw. | D50: 12 | H50: =B1+(D50-1)*5 -> 85 | K50: n | L50: =AND(D52=1,D53=2) -> FALSE | M50: =AND(D52=2,D53=2) -> TRUE | N50: =AND(D53=2,D52=3) -> FALSE
B51: Abstd. | F51: 22 | H51: =D2+(F51-2)*2 -> 44
B52: Fahrz. | D52: 2 | F52: 1
B53: Fahrbahn | D53: 2 | K53: t | L53: =IF(L49=TRUE,D59,"") ->  | M53: =IF(M49=TRUE,D60,"") ->  | N53: =IF(N49=TRUE,D61,"") -> 
K54: n | L54: =IF(L50=TRUE,F59,"") ->  | M54: =IF(M50=TRUE,F60,"") -> 5.5 | N54: =IF(N50=TRUE,F61,"") ->  | O54: Verzögerung
L55: =SUM(L53:L54) -> 0 | M55: =SUM(M53:M54) -> 5.5 | N55: =SUM(N53:N54) -> 0 | O55: =SUM(L55:N55) -> 5.5
L57: Zweites Fahrzeug
B58: Verzögerung | D58: trocken | F58: nass
B59: PW | D59: 7.5 | F59: 6.5 | L59: PKW | M59: Lieferwagen | N59: LKW
B60: Lieferwagen | D60: 6.5 | F60: 5.5 | K60: t | L60: =AND(D53=1,F52=1) -> FALSE | M60: =AND(F52=2,D53=1) -> FALSE | N60: =AND(F52=3,D53=1) -> FALSE
B61: LKW | D61: 5.5 | F61: 4.5 | K61: n | L61: =AND(D53=2,F52=1) -> TRUE | M61: =AND(F52=2,D53=2) -> FALSE | N61: =AND(F52=3,D53=2) -> FALSE
K64: t | L64: =IF(L60=TRUE,D59,"") ->  | M64: =IF(M60=TRUE,D60,"") ->  | N64: =IF(N60=TRUE,D61,"") -> 
K65: n | L65: =IF(L61=TRUE,F59,"") -> 6.5 | M65: =IF(M61=TRUE,F60,"") ->  | N65: =IF(N61=TRUE,F61,"") ->  | O65: Verzögerung
L66: =SUM(L64:L65) -> 6.5 | M66: =SUM(M64:M65) -> 0 | N66: =SUM(N64:N65) -> 0 | O66: =SUM(L66:N66) -> 6.5

Sheet Berechnungen (hidden)
B1: Berechnungsdaten
B3: Fahrzeug 1 (vorne) | G3: Fahrzeug 2 (hinten)
O4: Aufprallgeschwindigkeit Fahrz. 1 | R4: Aufprallgeschwindigkeit Fahrz. 2
B5: v [km/h] | C5: Weg [m] | E5: Zeit [s] | F5: Abstand [m] | G5: v [km/h] | H5: Weg [m]
B6: ='Dropdown-Daten'!$H$50 -> 85 | C6: 0 | E6: 0 | F6: ='Dropdown-Daten'!$H$51 -> 44 | G6: =IF('Eingabe - Diagramm'!$K$15>=E6,'Dropdown-Daten'!$H$50,(('Dropdown-Daten'!$H$50/3.6)-('Dropdown-Daten'!$O$66*(E6-'Eingabe - Diagramm'!$K$15)))*3.6) -> 85 | H6: =-'Dropdown-Daten'!H51 -> -44 | K6: =IF(G6>0,H6,K5) -> -44 | N6: =IF(O6=FALSE,6) -> 6 | O6: =AND(F6<0) -> FALSE | P6: =AND(O6=TRUE) -> FALSE | Q6: =IF(P6,B6,"") ->  | R6: =AND(O6=TRUE) -> FALSE | S6: =IF(R6=TRUE,G6,"") ->  | U6: =IF(P6=TRUE,E5,"") ->  | V6: =IF(P6=TRUE,H5,"") -> 
B7: =IF(((B$6/3.6)-('Dropdown-Daten'!$O$55*E7))*3.6>0,((B$6/3.6)-('Dropdown-Daten'!$O$55*E7))*3.6,0) -> 83.02 | C7: =IF(B7=0,C6,(E7/2*(B7/3.6+'Dropdown-Daten'!$H$50/3.6))) -> 2.333611111 | E7: 0.1 | F7: =C7-H7 -> 43.9725 | G7: =IF('Eingabe - Diagramm'!$K$15>=E7,'Dropdown-Daten'!$H$50,(('Dropdown-Daten'!$H$50/3.6)-('Dropdown-Daten'!$O$66*(E7-'Eingabe - Diagramm'!$K$15)))*3.6) -> 85 | H7: =IF(G7>0,L7,H6) -> -41.63888889 | K7: =IF(G7>0,H7,K6) -> -41.63888889 | L7: =IF('Eingabe - Diagramm'!$K$15>=E7,E7*(G7/3.6)+H$6,(G7/3.6+G6/3.6)/2*(E7-E6)+H6) -> -41.63888889 | N7: =IF(O7=FALSE,N6+1) -> 7 | O7: =AND(F7<0) -> FALSE | P7: =AND(O7=TRUE,O6=FALSE) -> FALSE | Q7: =IF(P7,B7,"") ->  | R7: =AND(O7=TRUE,O6=FALSE) -> FALSE | S7: =IF(R7=TRUE,G7,"") -> 
B8: =IF(((B$6/3.6)-('Dropdown-Daten'!$O$55*E8))*3.6>0,((B$6/3.6)-('Dropdown-Daten'!$O$55*E8))*3.6,0) -> 81.04 | C8: =IF(B8=0,C7,(E8/2*(B8/3.6+'Dropdown-Daten'!$H$50/3.6))) -> 4.612222222 | E8: 0.2 | F8: =C8-H8 -> 43.89 | G8: =IF('Eingabe - Diagramm'!$K$15>=E8,'Dropdown-Daten'!$H$50,(('Dropdown-Daten'!$H$50/3.6)-('Dropdown-Daten'!$O$66*(E8-'Eingabe - Diagramm'!$K$15)))*3.6) -> 85 | H8: =IF(G8>0,L8,H7) -> -39.27777778 | K8: -39.27777778 | L8: =IF('Eingabe - Diagramm'!$K$15>=E8,E8*(G8/3.6)+H$6,(G8/3.6+G7/3.6)/2*(E8-E7)+H7) -> -39.27777778 | N8: =IF(O8=FALSE,N7+1) -> 8 | O8: FALSE | P8: =AND(O8=TRUE,O7=FALSE) -> FALSE | R8: =AND(O8=TRUE,O7=FALSE) -> FALSE
B9: =IF(((B$6/3.6)-('Dropdown-Daten'!$O$55*E9))*3.6>0,((B$6/3.6)-('Dropdown-Daten'!$O$55*E9))*3.6,0) -> 79.06 | C9: =IF(B9=0,C8,(E9/2*(B9/3.6+'Dropdown-Daten'!$H$50/3.6))) -> 6.835833333 | E9: 0.3 | F9: 43.7525 | G9: =IF('Eingabe - Diagramm'!$K$15>=E9,'Dropdown-Daten'!$H$50,(('Dropdown-Daten'!$H$50/3.6)-('Dropdown-Daten'!$O$66*(E9-'Eingabe - Diagramm'!$K$15)))*3.6) -> 85 | H9: -36.91666667 | K9: -36.91666667 | L9: =IF('Eingabe - Diagramm'!$K$15>=E9,E9*(G9/3.6)+H$6,(G9/3.6+G8/3.6)/2*(E9-E8)+H8) -> -36.91666667 | N9: 9 | O9: FALSE | P9: FALSE | R9: FALSE
B10: =IF(((B$6/3.6)-('Dropdown-Daten'!$O$55*E10))*3.6>0,((B$6/3.6)-('Dropdown-Daten'!$O$55*E10))*3.6,0) -> 77.08 | C10: =IF(B10=0,C9,(E10/2*(B10/3.6+'Dropdown-Daten'!$H$50/3.6))) -> 9.004444444 | E10: 0.4 | F10: 43.56 | G10: =IF('Eingabe - Diagramm'!$K$15>=E10,'Dropdown-Daten'!$H$50,(('Dropdown-Daten'!$H$50/3.6)-('Dropdown-Daten'!$O$66*(E10-'Eingabe - Diagramm'!$K$15)))*3.6) -> 85 | H10: -34.55555556 | K10: -34.55555556 | L10: =IF('Eingabe - Diagramm'!$K$15>=E10,E10*(G10/3.6)+H$6,(G10/3.6+G9/3.6)/2*(E10-E9)+H9) -> -34.55555556 | N10: 10 | O10: FALSE | P10: FALSE | R10: FALSE
B11: =IF(((B$6/3.6)-('Dropdown-Daten'!$O$55*E11))*3.6>0,((B$6/3.6)-('Dropdown-Daten'!$O$55*E11))*3.6,0) -> 75.1 | C11: =IF(B11=0,C10,(E11/2*(B11/3.6+'Dropdown-Daten'!$H$50/3.6))) -> 11.11805556 | E11: 0.5 | F11: 43.3125 | G11: =IF('Eingabe - Diagramm'!$K$15>=E11,'Dropdown-Daten'!$H$50,(('Dropdown-Daten'!$H$50/3.6)-('Dropdown-Daten'!$O$66*(E11-'Eingabe - Diagramm'!$K$15)))*3.6) -> 85 | H11: -32.19444444 | K11: -32.19444444 | L11: =IF('Eingabe - Diagramm'!$K$15>=E11,E11*(G11/3.6)+H$6,(G11/3.6+G10/3.6)/2*(E11-E10)+H10) -> -32.19444444 | N11: 11 | O11: FALSE | P11: FALSE | R11: FALSE
B12: =IF(((B$6/3.6)-('Dropdown-Daten'!$O$55*E12))*3.6>0,((B$6/3.6)-('Dropdown-Daten'!$O$55*E12))*3.6,0) -> 73.12 | C12: =IF(B12=0,C11,(E12/2*(B12/3.6+'Dropdown-Daten'!$H$50/3.6))) -> 13.17666667 | E12: 0.6 | F12: 43.01 | G12: =IF('Eingabe - Diagramm'!$K$15>=E12,'Dropdown-Daten'!$H$50,(('Dropdown-Daten'!$H$50/3.6)-('Dropdown-Daten'!$O$66*(E12-'Eingabe - Diagramm'!$K$15)))*3.6) -> 85 | H12: -29.83333333 | K12: -29.83333333 | L12: =IF('Eingabe - Diagramm'!$K$15>=E12,E12*(G12/3.6)+H$6,(G12/3.6+G11/3.6)/2*(E12-E11)+H11) -> -29.83333333 | N12: 12 | O12: FALSE | P12: FALSE | R12: FALSE
B13: =IF(((B$6/3.6)-('Dropdown-Daten'!$O$55*E13))*3.6>0,((B$6/3.6)-('Dropdown-Daten'!$O$55*E13))*3.6,0) -> 71.14 | C13: =IF(B13=0,C12,(E13/2*(B13/3.6+'Dropdown-Daten'!$H$50/3.6))) -> 15.18027778 | E13: 0.7 | F13: 42.6525 | G13: =IF('Eingabe - Diagramm'!$K$15>=E13,'Dropdown-Daten'!$H$50,(('Dropdown-Daten'!$H$50/3.6)-('Dropdown-Daten'!$O$66*(E13-'Eingabe - Diagramm'!$K$15)))*3.6) -> 85 | H13: -27.47222222 | K13: -27.47222222 | L13: =IF('Eingabe - Diagramm'!$K$15>=E13,E13*(G13/3.6)+H$6,(G13/3.6+G12/3.6)/2*(E13-E12)+H12) -> -27.47222222 | N13: 13 | O13: FALSE | P13: FALSE | R13: FALSE
B14: =IF(((B$6/3.6)-('Dropdown-Daten'!$O$55*E14))*3.6>0,((B$6/3.6)-('Dropdown-Daten'!$O$55*E14))*3.6,0) -> 69.16 | C14: =IF(B14=0,C13,(E14/2*(B14/3.6+'Dropdown-Daten'!$H$50/3.6))) -> 17.12888889 | E14: 0.8 | F14: 42.24 | G14: =IF('Eingabe - Diagramm'!$K$15>=E14,'Dropdown-Daten'!$H$50,(('Dropdown-Daten'!$H$50/3.6)-('Dropdown-Daten'!$O$66*(E14-'Eingabe - Diagramm'!$K$15)))*3.6) -> 85 | H14: -25.11111111 | K14: -25.11111111 | L14: =IF('Eingabe - Diagramm'!$K$15>=E14,E14*(G14/3.6)+H$6,(G14/3.6+G13/3.6)/2*(E14-E13)+H13) -> -25.11111111 | N14: 14 | O14: FALSE | P14: FALSE | R14: FALSE
B15: =IF(((B$6/3.6)-('Dropdown-Daten'!$O$55*E15))*3.6>0,((B$6/3.6)-('Dropdown-Daten'!$O$55*E15))*3.6,0) -> 67.18 | C15: =IF(B15=0,C14,(E15/2*(B15/3.6+'Dropdown-Daten'!$H$50/3.6))) -> 19.0225 | E15: 0.9 | F15: 41.7725 | G15: =IF('Eingabe - Diagramm'!$K$15>=E15,'Dropdown-Daten'!$H$50,(('Dropdown-Daten'!$H$50/3.6)-('Dropdown-Daten'!$O$66*(E15-'Eingabe - Diagramm'!$K$15)))*3.6) -> 85 | H15: -22.75 | K15: -22.75 | L15: =IF('Eingabe - Diagramm'!$K$15>=E15,E15*(G15/3.6)+H$6,(G15/3.6+G14/3.6)/2*(E15-E14)+H14) -> -22.75 | N15: 15 | O15: FALSE | P15: FALSE | R15: FALSE
B16: =IF(((B$6/3.6)-('Dropdown-Daten'!$O$55*E16))*3.6>0,((B$6/3.6)-('Dropdown-Daten'!$O$55*E16))*3.6,0) -> 65.2 | C16: =IF(B16=0,C15,(E16/2*(B16/3.6+'Dropdown-Daten'!$H$50/3.6))) -> 20.86111111 | E16: 1 | F16: 41.25 | G16: =IF('Eingabe - Diagramm'!$K$15>=E16,'Dropdown-Daten'!$H$50,(('Dropdown-Daten'!$H$50/3.6)-('Dropdown-Daten'!$O$66*(E16-'Eingabe - Diagramm'!$K$15)))*3.6) -> 85 | H16: -20.38888889 | K16: -20.38888889 | L16: =IF('Eingabe - Diagramm'!$K$15>=E16,E16*(G16/3.6)+H$6,(G16/3.6+G15/3.6)/2*(E16-E15)+H15) -> -20.38888889 | N16: 16 | O16: FALSE | P16: FALSE | R16: FALSE
B17: =IF(((B$6/3.6)-('Dropdown-Daten'!$O$55*E17))*3.6>0,((B$6/3.6)-('Dropdown-Daten'!$O$55*E17))*3.6,0) -> 63.22 | C17: =IF(B17=0,C16,(E17/2*(B17/3.6+'Dropdown-Daten'!$H$50/3.6))) -> 22.64472222 | E17: 1.1 | F17: 40.705 | G17: =IF('Eingabe - Diagramm'!$K$15>=E17,'Dropdown-Daten'!$H$50,(('Dropdown-Daten'!$H$50/3.6)-('Dropdown-Daten'!$O$66*(E17-'Eingabe - Diagramm'!$K$15)))*3.6) -> 82.66 | H17: -18.06027778 | K17: -18.06027778 | L17: =IF('Eingabe - Diagramm'!$K$15>=E17,E17*(G17/3.6)+H$6,(G17/3.6+G16/3.6)/2*(E17-E16)+H16) -> -18.06027778 | N17: 17 | O17: FALSE | P17: FALSE | R17: FALSE
B18: =IF(((B$6/3.6)-('Dropdown-Daten'!$O$55*E18))*3.6>0,((B$6/3.6)-('Dropdown-Daten'!$O$55*E18))*3.6,0) -> 61.24 | C18: =IF(B18=0,C17,(E18/2*(B18/3.6+'Dropdown-Daten'!$H$50/3.6))) -> 24.37333333 | E18: 1.2 | F18: 40.17 | G18: =IF('Eingabe - Diagramm'!$K$15>=E18,'Dropdown-Daten'!$H$50,(('Dropdown-Daten'!$H$50/3.6)-('Dropdown-Daten'!$O$66*(E18-'Eingabe - Diagramm'!$K$15)))*3.6) -> 80.32 | H18: -15.79666667 | K18: -15.79666667 | L18: =IF('Eingabe - Diagramm'!$K$15>=E18,E18*(G18/3.6)+H$6,(G18/3.6+G17/3.6)/2*(E18-E17)+H17) -> -15.79666667 | N18: 18 | O18: FALSE | P18: FALSE | R18: FALSE
B19: =IF(((B$6/3.6)-('Dropdown-Daten'!$O$55*E19))*3.6>0,((B$6/3.6)-('Dropdown-Daten'!$O$55*E19))*3.6,0) -> 59.26 | C19: =IF(B19=0,C18,(E19/2*(B19/3.6+'Dropdown-Daten'!$H$50/3.6))) -> 26.04694444 | E19: 1.3 | F19: 39.645 | G19: =IF('Eingabe - Diagramm'!$K$15>=E19,'Dropdown-Daten'!$H$50,(('Dropdown-Daten'!$H$50/3.6)-('Dropdown-Daten'!$O$66*(E19-'Eingabe - Diagramm'!$K$15)))*3.6) -> 77.98 | H19: -13.59805556 | K19: -13.59805556 | L19: =IF('Eingabe - Diagramm'!$K$15>=E19,E19*(G19/3.6)+H$6,(G19/3.6+G18/3.6)/2*(E19-E18)+H18) -> -13.59805556 | N19: 19 | O19: FALSE | P19: FALSE | R19: FALSE
B20: =IF(((B$6/3.6)-('Dropdown-Daten'!$O$55*E20))*3.6>0,((B$6/3.6)-('Dropdown-Daten'!$O$55*E20))*3.6,0) -> 57.28 | C20: =IF(B20=0,C19,(E20/2*(B20/3.6+'Dropdown-Daten'!$H$50/3.6))) -> 27.66555556 | E20: 1.4 | F20: =C20-H20 -> 39.13 | G20: =IF('Eingabe - Diagramm'!$K$15>=E20,'Dropdown-Daten'!$H$50,(('Dropdown-Daten'!$H$50/3.6)-('Dropdown-Daten'!$O$66*(E20-'Eingabe - Diagramm'!$K$15)))*3.6) -> 75.64 | H20: -11.46444444 | K20: -11.46444444 | L20: =IF('Eingabe - Diagramm'!$K$15>=E20,E20*(G20/3.6)+H$6,(G20/3.6+G19/3.6)/2*(E20-E19)+H19) -> -11.46444444 | N20: 20 | O20: FALSE | P20: FALSE | R20: FALSE
B21: =IF(((B$6/3.6)-('Dropdown-Daten'!$O$55*E21))*3.6>0,((B$6/3.6)-('Dropdown-Daten'!$O$55*E21))*3.6,0) -> 55.3 | C21: =IF(B21=0,C20,(E21/2*(B21/3.6+'Dropdown-Daten'!$H$50/3.6))) -> 29.22916667 | E21: 1.5 | F21: 38.625 | G21: =IF('Eingabe - Diagramm'!$K$15>=E21,'Dropdown-Daten'!$H$50,(('Dropdown-Daten'!$H$50/3.6)-('Dropdown-Daten'!$O$66*(E21-'Eingabe - Diagramm'!$K$15)))*3.6) -> 73.3 | H21: -9.395833333 | K21: -9.395833333 | L21: =IF('Eingabe - Diagramm'!$K$15>=E21,E21*(G21/3.6)+H$6,(G21/3.6+G20/3.6)/2*(E21-E20)+H20) -> -9.395833333 | N21: 21 | O21: FALSE | P21: FALSE | R21: FALSE
B22: =IF(((B$6/3.6)-('Dropdown-Daten'!$O$55*E22))*3.6>0,((B$6/3.6)-('Dropdown-Daten'!$O$55*E22))*3.6,0) -> 53.32 | C22: =IF(B22=0,C21,(E22/2*(B22/3.6+'Dropdown-Daten'!$H$50/3.6))) -> 30.73777778 | E22: 1.6 | F22: 38.13 | G22: =IF('Eingabe - Diagramm'!$K$15>=E22,'Dropdown-Daten'!$H$50,(('Dropdown-Daten'!$H$50/3.6)-('Dropdown-Daten'!$O$66*(E22-'Eingabe - Diagramm'!$K$15)))*3.6) -> 70.96 | H22: -7.392222222 | K22: -7.392222222 | L22: =IF('Eingabe - Diagramm'!$K$15>=E22,E22*(G22/3.6)+H$6,(G22/3.6+G21/3.6)/2*(E22-E21)+H21) -> -7.392222222 | N22: 22 | O22: FALSE | P22: FALSE | R22: FALSE
B23: =IF(((B$6/3.6)-('Dropdown-Daten'!$O$55*E23))*3.6>0,((B$6/3.6)-('Dropdown-Daten'!$O$55*E23))*3.6,0) -> 51.34 | C23: =IF(B23=0,C22,(E23/2*(B23/3.6+'Dropdown-Daten'!$H$50/3.6))) -> 32.19138889 | E23: 1.7 | F23: 37.645 | G23: =IF('Eingabe - Diagramm'!$K$15>=E23,'Dropdown-Daten'!$H$50,(('Dropdown-Daten'!$H$50/3.6)-('Dropdown-Daten'!$O$66*(E23-'Eingabe - Diagramm'!$K$15)))*3.6) -> 68.62 | H23: -5.453611111 | K23: -5.453611111 | L23: =IF('Eingabe - Diagramm'!$K$15>=E23,E23*(G23/3.6)+H$6,(G23/3.6+G22/3.6)/2*(E23-E22)+H22) -> -5.453611111 | N23: 23 | O23: FALSE | P23: FALSE | R23: FALSE | V23: =IF(P23=TRUE,H22,"") -> 
B24: =IF(((B$6/3.6)-('Dropdown-Daten'!$O$55*E24))*3.6>0,((B$6/3.6)-('Dropdown-Daten'!$O$55*E24))*3.6,0) -> 49.36 | C24: =IF(B24=0,C23,(E24/2*(B24/3.6+'Dropdown-Daten'!$H$50/3.6))) -> 33.59 | E24: 1.8 | F24: 37.17 | G24: =IF('Eingabe - Diagramm'!$K$15>=E24,'Dropdown-Daten'!$H$50,(('Dropdown-Daten'!$H$50/3.6)-('Dropdown-Daten'!$O$66*(E24-'Eingabe - Diagramm'!$K$15)))*3.6) -> 66.28 | H24: -3.58 | K24: -3.58 | L24: =IF('Eingabe - Diagramm'!$K$15>=E24,E24*(G24/3.6)+H$6,(G24/3.6+G23/3.6)/2*(E24-E23)+H23) -> -3.58 | N24: 24 | O24: FALSE | P24: FALSE | R24: FALSE | V24: =IF(P24=TRUE,H23,"") -> 
B25: =IF(((B$6/3.6)-('Dropdown-Daten'!$O$55*E25))*3.6>0,((B$6/3.6)-('Dropdown-Daten'!$O$55*E25))*3.6,0) -> 47.38 | C25: =IF(B25=0,C24,(E25/2*(B25/3.6+'Dropdown-Daten'!$H$50/3.6))) -> 34.93361111 | E25: 1.9 | F25: 36.705 | G25: =IF('Eingabe - Diagramm'!$K$15>=E25,'Dropdown-Daten'!$H$50,(('Dropdown-Daten'!$H$50/3.6)-('Dropdown-Daten'!$O$66*(E25-'Eingabe - Diagramm'!$K$15)))*3.6) -> 63.94 | H25: -1.771388889 | K25: -1.771388889 | L25: =IF('Eingabe - Diagramm'!$K$15>=E25,E25*(G25/3.6)+H$6,(G25/3.6+G24/3.6)/2*(E25-E24)+H24) -> -1.771388889 | N25: 25 | O25: FALSE | P25: FALSE | R25: FALSE
B26: =IF(((B$6/3.6)-('Dropdown-Daten'!$O$55*E26))*3.6>0,((B$6/3.6)-('Dropdown-Daten'!$O$55*E26))*3.6,0) -> 45.4 | C26: =IF(B26=0,C25,(E26/2*(B26/3.6+'Dropdown-Daten'!$H$50/3.6))) -> 36.22222222 | E26: 2 | F26: 36.25 | G26: =IF('Eingabe - Diagramm'!$K$15>=E26,'Dropdown-Daten'!$H$50,(('Dropdown-Daten'!$H$50/3.6)-('Dropdown-Daten'!$O$66*(E26-'Eingabe - Diagramm'!$K$15)))*3.6) -> 61.6 | H26: -0.02777777778 | K26: -0.02777777778 | L26: =IF('Eingabe - Diagramm'!$K$15>=E26,E26*(G26/3.6)+H$6,(G26/3.6+G25/3.6)/2*(E26-E25)+H25) -> -0.02777777778 | N26: 26 | O26: FALSE | P26: =AND(O26=TRUE,O25=FALSE) -> FALSE | R26: FALSE
B27: =IF(((B$6/3.6)-('Dropdown-Daten'!$O$55*E27))*3.6>0,((B$6/3.6)-('Dropdown-Daten'!$O$55*E27))*3.6,0) -> 43.42 | C27: =IF(B27=0,C26,(E27/2*(B27/3.6+'Dropdown-Daten'!$H$50/3.6))) -> 37.45583333 | E27: 2.1 | F27: 35.805 | G27: =IF('Eingabe - Diagramm'!$K$15>=E27,'Dropdown-Daten'!$H$50,(('Dropdown-Daten'!$H$50/3.6)-('Dropdown-Daten'!$O$66*(E27-'Eingabe - Diagramm'!$K$15)))*3.6) -> 59.26 | H27: 1.650833333 | K27: 1.650833333 | L27: =IF('Eingabe - Diagramm'!$K$15>=E27,E27*(G27/3.6)+H$6,(G27/3.6+G26/3.6)/2*(E27-E26)+H26) -> 1.650833333 | N27: 27 | O27: FALSE | P27: FALSE | R27: FALSE
B28: =IF(((B$6/3.6)-('Dropdown-Daten'!$O$55*E28))*3.6>0,((B$6/3.6)-('Dropdown-Daten'!$O$55*E28))*3.6,0) -> 41.44 | C28: =IF(B28=0,C27,(E28/2*(B28/3.6+'Dropdown-Daten'!$H$50/3.6))) -> 38.63444444 | E28: 2.2 | F28: 35.37 | G28: =IF('Eingabe - Diagramm'!$K$15>=E28,'Dropdown-Daten'!$H$50,(('Dropdown-Daten'!$H$50/3.6)-('Dropdown-Daten'!$O$66*(E28-'Eingabe - Diagramm'!$K$15)))*3.6) -> 56.92 | H28: 3.264444444 | K28: 3.264444444 | L28: =IF('Eingabe - Diagramm'!$K$15>=E28,E28*(G28/3.6)+H$6,(G28/3.6+G27/3.6)/2*(E28-E27)+H27) -> 3.264444444 | N28: 28 | O28: FALSE | P28: FALSE | R28: FALSE
B29: =IF(((B$6/3.6)-('Dropdown-Daten'!$O$55*E29))*3.6>0,((B$6/3.6)-('Dropdown-Daten'!$O$55*E29))*3.6,0) -> 39.46 | C29: =IF(B29=0,C28,(E29/2*(B29/3.6+'Dropdown-Daten'!$H$50/3.6))) -> 39.75805556 | E29: 2.3 | F29: 34.945 | G29: =IF('Eingabe - Diagramm'!$K$15>=E29,'Dropdown-Daten'!$H$50,(('Dropdown-Daten'!$H$50/3.6)-('Dropdown-Daten'!$O$66*(E29-'Eingabe - Diagramm'!$K$15)))*3.6) -> 54.58 | H29: 4.813055556 | K29: 4.813055556 | L29: =IF('Eingabe - Diagramm'!$K$15>=E29,E29*(G29/3.6)+H$6,(G29/3.6+G28/3.6)/2*(E29-E28)+H28) -> 4.813055556 | N29: 29 | O29: FALSE | P29: FALSE | R29: FALSE
B30: =IF(((B$6/3.6)-('Dropdown-Daten'!$O$55*E30))*3.6>0,((B$6/3.6)-('Dropdown-Daten'!$O$55*E30))*3.6,0) -> 37.48 | C30: =IF(B30=0,C29,(E30/2*(B30/3.6+'Dropdown-Daten'!$H$50/3.6))) -> 40.82666667 | E30: 2.4 | F30: 34.53 | G30: =IF('Eingabe - Diagramm'!$K$15>=E30,'Dropdown-Daten'!$H$50,(('Dropdown-Daten'!$H$50/3.6)-('Dropdown-Daten'!$O$66*(E30-'Eingabe - Diagramm'!$K$15)))*3.6) -> 52.24 | H30: 6.296666667 | K30: 6.296666667 | L30: =IF('Eingabe - Diagramm'!$K$15>=E30,E30*(G30/3.6)+H$6,(G30/3.6+G29/3.6)/2*(E30-E29)+H29) -> 6.296666667 | N30: 30 | O30: FALSE | P30: FALSE | R30: FALSE
B31: =IF(((B$6/3.6)-('Dropdown-Daten'!$O$55*E31))*3.6>0,((B$6/3.6)-('Dropdown-Daten'!$O$55*E31))*3.6,0) -> 35.5 | C31: =IF(B31=0,C30,(E31/2*(B31/3.6+'Dropdown-Daten'!$H$50/3.6))) -> 41.84027778 | E31: 2.5 | F31: 34.125 | G31: =IF('Eingabe - Diagramm'!$K$15>=E31,'Dropdown-Daten'!$H$50,(('Dropdown-Daten'!$H$50/3.6)-('Dropdown-Daten'!$O$66*(E31-'Eingabe - Diagramm'!$K$15)))*3.6) -> 49.9 | H31: =IF(G31>0,L31,H30) -> 7.715277778 | K31: 7.715277778 | L31: =IF('Eingabe - Diagramm'!$K$15>=E31,E31*(G31/3.6)+H$6,(G31/3.6+G30/3.6)/2*(E31-E30)+H30) -> 7.715277778 | N31: 31 | O31: FALSE | P31: FALSE | R31: FALSE
B32: =IF(((B$6/3.6)-('Dropdown-Daten'!$O$55*E32))*3.6>0,((B$6/3.6)-('Dropdown-Daten'!$O$55*E32))*3.6,0) -> 33.52 | C32: =IF(B32=0,C31,(E32/2*(B32/3.6+'Dropdown-Daten'!$H$50/3.6))) -> 42.79888889 | E32: 2.6 | F32: 33.73 | G32: =IF('Eingabe - Diagramm'!$K$15>=E32,'Dropdown-Daten'!$H$50,(('Dropdown-Daten'!$H$50/3.6)-('Dropdown-Daten'!$O$66*(E32-'Eingabe - Diagramm'!$K$15)))*3.6) -> 47.56 | H32: 9.068888889 | K32: 9.068888889 | L32: =IF('Eingabe - Diagramm'!$K$15>=E32,E32*(G32/3.6)+H$6,(G32/3.6+G31/3.6)/2*(E32-E31)+H31) -> 9.068888889 | N32: 32 | O32: FALSE | P32: FALSE | R32: FALSE
B33: =IF(((B$6/3.6)-('Dropdown-Daten'!$O$55*E33))*3.6>0,((B$6/3.6)-('Dropdown-Daten'!$O$55*E33))*3.6,0) -> 31.54 | C33: =IF(B33=0,C32,(E33/2*(B33/3.6+'Dropdown-Daten'!$H$50/3.6))) -> 43.7025 | E33: 2.7 | F33: 33.345 | G33: =IF('Eingabe - Diagramm'!$K$15>=E33,'Dropdown-Daten'!$H$50,(('Dropdown-Daten'!$H$50/3.6)-('Dropdown-Daten'!$O$66*(E33-'Eingabe - Diagramm'!$K$15)))*3.6) -> 45.22 | H33: 10.3575 | K33: 10.3575 | L33: =IF('Eingabe - Diagramm'!$K$15>=E33,E33*(G33/3.6)+H$6,(G33/3.6+G32/3.6)/2*(E33-E32)+H32) -> 10.3575 | N33: 33 | O33: FALSE | P33: FALSE | R33: FALSE
B34: =IF(((B$6/3.6)-('Dropdown-Daten'!$O$55*E34))*3.6>0,((B$6/3.6)-('Dropdown-Daten'!$O$55*E34))*3.6,0) -> 29.56 | C34: =IF(B34=0,C33,(E34/2*(B34/3.6+'Dropdown-Daten'!$H$50/3.6))) -> 44.55111111 | E34: 2.8 | F34: 32.97 | G34: =IF('Eingabe - Diagramm'!$K$15>=E34,'Dropdown-Daten'!$H$50,(('Dropdown-Daten'!$H$50/3.6)-('Dropdown-Daten'!$O$66*(E34-'Eingabe - Diagramm'!$K$15)))*3.6) -> 42.88 | H34: 11.58111111 | K34: 11.58111111 | L34: =IF('Eingabe - Diagramm'!$K$15>=E34,E34*(G34/3.6)+H$6,(G34/3.6+G33/3.6)/2*(E34-E33)+H33) -> 11.58111111 | N34: 34 | O34: FALSE | P34: FALSE | R34: FALSE
B35: =IF(((B$6/3.6)-('Dropdown-Daten'!$O$55*E35))*3.6>0,((B$6/3.6)-('Dropdown-Daten'!$O$55*E35))*3.6,0) -> 27.58 | C35: =IF(B35=0,C34,(E35/2*(B35/3.6+'Dropdown-Daten'!$H$50/3.6))) -> 45.34472222 | E35: 2.9 | F35: 32.605 | G35: =IF('Eingabe - Diagramm'!$K$15>=E35,'Dropdown-Daten'!$H$50,(('Dropdown-Daten'!$H$50/3.6)-('Dropdown-Daten'!$O$66*(E35-'Eingabe - Diagramm'!$K$15)))*3.6) -> 40.54 | H35: 12.73972222 | K35: 12.73972222 | L35: =IF('Eingabe - Diagramm'!$K$15>=E35,E35*(G35/3.6)+H$6,(G35/3.6+G34/3.6)/2*(E35-E34)+H34) -> 12.73972222 | N35: 35 | O35: FALSE | P35: FALSE | R35: =AND(O35=TRUE,O34=FALSE) -> FALSE
B36: =IF(((B$6/3.6)-('Dropdown-Daten'!$O$55*E36))*3.6>0,((B$6/3.6)-('Dropdown-Daten'!$O$55*E36))*3.6,0) -> 25.6 | C36: =IF(B36=0,C35,(E36/2*(B36/3.6+'Dropdown-Daten'!$H$50/3.6))) -> 46.08333333 | E36: 3 | F36: 32.25 | G36: =IF('Eingabe - Diagramm'!$K$15>=E36,'Dropdown-Daten'!$H$50,(('Dropdown-Daten'!$H$50/3.6)-('Dropdown-Daten'!$O$66*(E36-'Eingabe - Diagramm'!$K$15)))*3.6) -> 38.2 | H36: 13.83333333 | K36: 13.83333333 | L36: =IF('Eingabe - Diagramm'!$K$15>=E36,E36*(G36/3.6)+H$6,(G36/3.6+G35/3.6)/2*(E36-E35)+H35) -> 13.83333333 | N36: 36 | O36: FALSE | P36: FALSE | R36: FALSE
B37: =IF(((B$6/3.6)-('Dropdown-Daten'!$O$55*E37))*3.6>0,((B$6/3.6)-('Dropdown-Daten'!$O$55*E37))*3.6,0) -> 23.62 | C37: =IF(B37=0,C36,(E37/2*(B37/3.6+'Dropdown-Daten'!$H$50/3.6))) -> 46.76694444 | E37: 3.1 | F37: =C37-H37 -> 31.905 | G37: =IF('Eingabe - Diagramm'!$K$15>=E37,'Dropdown-Daten'!$H$50,(('Dropdown-Daten'!$H$50/3.6)-('Dropdown-Daten'!$O$66*(E37-'Eingabe - Diagramm'!$K$15)))*3.6) -> 35.86 | H37: 14.86194444 | K37: 14.86194444 | L37: =IF('Eingabe - Diagramm'!$K$15>=E37,E37*(G37/3.6)+H$6,(G37/3.6+G36/3.6)/2*(E37-E36)+H36) -> 14.86194444 | N37: 37 | O37: FALSE | P37: =AND(O37=TRUE,O36=FALSE) -> FALSE | R37: FALSE
B38: =IF(((B$6/3.6)-('Dropdown-Daten'!$O$55*E38))*3.6>0,((B$6/3.6)-('Dropdown-Daten'!$O$55*E38))*3.6,0) -> 21.64 | C38: =IF(B38=0,C37,(E38/2*(B38/3.6+'Dropdown-Daten'!$H$50/3.6))) -> 47.39555556 | E38: 3.2 | F38: 31.57 | G38: =IF('Eingabe - Diagramm'!$K$15>=E38,'Dropdown-Daten'!$H$50,(('Dropdown-Daten'!$H$50/3.6)-('Dropdown-Daten'!$O$66*(E38-'Eingabe - Diagramm'!$K$15)))*3.6) -> 33.52 | H38: 15.82555556 | K38: =IF(G38>0,H38,K37) -> 15.82555556 | L38: =IF('Eingabe - Diagramm'!$K$15>=E38,E38*(G38/3.6)+H$6,(G38/3.6+G37/3.6)/2*(E38-E37)+H37) -> 15.82555556 | N38: 38 | O38: FALSE | P38: FALSE | R38: FALSE
B39: =IF(((B$6/3.6)-('Dropdown-Daten'!$O$55*E39))*3.6>0,((B$6/3.6)-('Dropdown-Daten'!$O$55*E39))*3.6,0) -> 19.66 | C39: =IF(B39=0,C38,(E39/2*(B39/3.6+'Dropdown-Daten'!$H$50/3.6))) -> 47.96916667 | E39: 3.3 | F39: 31.245 | G39: =IF('Eingabe - Diagramm'!$K$15>=E39,'Dropdown-Daten'!$H$50,(('Dropdown-Daten'!$H$50/3.6)-('Dropdown-Daten'!$O$66*(E39-'Eingabe - Diagramm'!$K$15)))*3.6) -> 31.18 | H39: 16.72416667 | K39: 16.72416667 | L39: =IF('Eingabe - Diagramm'!$K$15>=E39,E39*(G39/3.6)+H$6,(G39/3.6+G38/3.6)/2*(E39-E38)+H38) -> 16.72416667 | N39: 39 | O39: FALSE | P39: FALSE | R39: FALSE
B40: =IF(((B$6/3.6)-('Dropdown-Daten'!$O$55*E40))*3.6>0,((B$6/3.6)-('Dropdown-Daten'!$O$55*E40))*3.6,0) -> 17.68 | C40: =IF(B40=0,C39,(E40/2*(B40/3.6+'Dropdown-Daten'!$H$50/3.6))) -> 48.48777778 | E40: 3.4 | F40: 30.93 | G40: =IF('Eingabe - Diagramm'!$K$15>=E40,'Dropdown-Daten'!$H$50,(('Dropdown-Daten'!$H$50/3.6)-('Dropdown-Daten'!$O$66*(E40-'Eingabe - Diagramm'!$K$15)))*3.6) -> 28.84 | H40: 17.55777778 | K40: 17.55777778 | L40: =IF('Eingabe - Diagramm'!$K$15>=E40,E40*(G40/3.6)+H$6,(G40/3.6+G39/3.6)/2*(E40-E39)+H39) -> 17.55777778 | N40: 40 | O40: FALSE | P40: FALSE | R40: FALSE
B41: =IF(((B$6/3.6)-('Dropdown-Daten'!$O$55*E41))*3.6>0,((B$6/3.6)-('Dropdown-Daten'!$O$55*E41))*3.6,0) -> 15.7 | C41: =IF(B41=0,C40,(E41/2*(B41/3.6+'Dropdown-Daten'!$H$50/3.6))) -> 48.95138889 | E41: 3.5 | F41: 30.625 | G41: =IF('Eingabe - Diagramm'!$K$15>=E41,'Dropdown-Daten'!$H$50,(('Dropdown-Daten'!$H$50/3.6)-('Dropdown-Daten'!$O$66*(E41-'Eingabe - Diagramm'!$K$15)))*3.6) -> 26.5 | H41: 18.32638889 | K41: 18.32638889 | L41: =IF('Eingabe - Diagramm'!$K$15>=E41,E41*(G41/3.6)+H$6,(G41/3.6+G40/3.6)/2*(E41-E40)+H40) -> 18.32638889 | N41: 41 | O41: FALSE | P41: FALSE | R41: FALSE
B42: =IF(((B$6/3.6)-('Dropdown-Daten'!$O$55*E42))*3.6>0,((B$6/3.6)-('Dropdown-Daten'!$O$55*E42))*3.6,0) -> 13.72 | C42: =IF(B42=0,C41,(E42/2*(B42/3.6+'Dropdown-Daten'!$H$50/3.6))) -> 49.36 | E42: 3.6 | F42: 30.33 | G42: =IF('Eingabe - Diagramm'!$K$15>=E42,'Dropdown-Daten'!$H$50,(('Dropdown-Daten'!$H$50/3.6)-('Dropdown-Daten'!$O$66*(E42-'Eingabe - Diagramm'!$K$15)))*3.6) -> 24.16 | H42: 19.03 | K42: 19.03 | L42: =IF('Eingabe - Diagramm'!$K$15>=E42,E42*(G42/3.6)+H$6,(G42/3.6+G41/3.6)/2*(E42-E41)+H41) -> 19.03 | N42: 42 | O42: FALSE | P42: FALSE | R42: FALSE
B43: =IF(((B$6/3.6)-('Dropdown-Daten'!$O$55*E43))*3.6>0,((B$6/3.6)-('Dropdown-Daten'!$O$55*E43))*3.6,0) -> 11.74 | C43: =IF(B43=0,C42,(E43/2*(B43/3.6+'Dropdown-Daten'!$H$50/3.6))) -> 49.71361111 | E43: 3.7 | F43: 30.045 | G43: =IF('Eingabe - Diagramm'!$K$15>=E43,'Dropdown-Daten'!$H$50,(('Dropdown-Daten'!$H$50/3.6)-('Dropdown-Daten'!$O$66*(E43-'Eingabe - Diagramm'!$K$15)))*3.6) -> 21.82 | H43: 19.66861111 | K43: 19.66861111 | L43: =IF('Eingabe - Diagramm'!$K$15>=E43,E43*(G43/3.6)+H$6,(G43/3.6+G42/3.6)/2*(E43-E42)+H42) -> 19.66861111 | N43: 43 | O43: FALSE | P43: FALSE | R43: FALSE
B44: =IF(((B$6/3.6)-('Dropdown-Daten'!$O$55*E44))*3.6>0,((B$6/3.6)-('Dropdown-Daten'!$O$55*E44))*3.6,0) -> 9.76 | C44: =IF(B44=0,C43,(E44/2*(B44/3.6+'Dropdown-Daten'!$H$50/3.6))) -> 50.01222222 | E44: 3.8 | F44: 29.77 | G44: =IF('Eingabe - Diagramm'!$K$15>=E44,'Dropdown-Daten'!$H$50,(('Dropdown-Daten'!$H$50/3.6)-('Dropdown-Daten'!$O$66*(E44-'Eingabe - Diagramm'!$K$15)))*3.6) -> 19.48 | H44: 20.24222222 | K44: 20.24222222 | L44: =IF('Eingabe - Diagramm'!$K$15>=E44,E44*(G44/3.6)+H$6,(G44/3.6+G43/3.6)/2*(E44-E43)+H43) -> 20.24222222 | N44: 44 | O44: FALSE | P44: FALSE | R44: FALSE
B45: =IF(((B$6/3.6)-('Dropdown-Daten'!$O$55*E45))*3.6>0,((B$6/3.6)-('Dropdown-Daten'!$O$55*E45))*3.6,0) -> 7.78 | C45: =IF(B45=0,C44,(E45/2*(B45/3.6+'Dropdown-Daten'!$H$50/3.6))) -> 50.25583333 | E45: 3.9 | F45: 29.505 | G45: =IF('Eingabe - Diagramm'!$K$15>=E45,'Dropdown-Daten'!$H$50,(('Dropdown-Daten'!$H$50/3.6)-('Dropdown-Daten'!$O$66*(E45-'Eingabe - Diagramm'!$K$15)))*3.6) -> 17.14 | H45: 20.75083333 | K45: 20.75083333 | L45: =IF('Eingabe - Diagramm'!$K$15>=E45,E45*(G45/3.6)+H$6,(G45/3.6+G44/3.6)/2*(E45-E44)+H44) -> 20.75083333 | N45: 45 | O45: FALSE | P45: FALSE | R45: FALSE
B46: =IF(((B$6/3.6)-('Dropdown-Daten'!$O$55*E46))*3.6>0,((B$6/3.6)-('Dropdown-Daten'!$O$55*E46))*3.6,0) -> 5.8 | C46: =IF(B46=0,C45,(E46/2*(B46/3.6+'Dropdown-Daten'!$H$50/3.6))) -> 50.44444444 | E46: 4 | F46: 29.25 | G46: =IF('Eingabe - Diagramm'!$K$15>=E46,'Dropdown-Daten'!$H$50,(('Dropdown-Daten'!$H$50/3.6)-('Dropdown-Daten'!$O$66*(E46-'Eingabe - Diagramm'!$K$15)))*3.6) -> 14.8 | H46: 21.19444444 | K46: =IF(G46>0,H46,K45) -> 21.19444444 | L46: =IF('Eingabe - Diagramm'!$K$15>=E46,E46*(G46/3.6)+H$6,(G46/3.6+G45/3.6)/2*(E46-E45)+H45) -> 21.19444444 | N46: 46 | O46: FALSE | P46: FALSE | R46: =AND(O46=TRUE,O45=FALSE) -> FALSE
B47: =IF(((B$6/3.6)-('Dropdown-Daten'!$O$55*E47))*3.6>0,((B$6/3.6)-('Dropdown-Daten'!$O$55*E47))*3.6,0) -> 3.82 | C47: =IF(B47=0,C46,(E47/2*(B47/3.6+'Dropdown-Daten'!$H$50/3.6))) -> 50.57805556 | E47: 4.1 | F47: 29.005 | G47: =IF('Eingabe - Diagramm'!$K$15>=E47,'Dropdown-Daten'!$H$50,(('Dropdown-Daten'!$H$50/3.6)-('Dropdown-Daten'!$O$66*(E47-'Eingabe - Diagramm'!$K$15)))*3.6) -> 12.46 | H47: 21.57305556 | K47: 21.57305556 | L47: =IF('Eingabe - Diagramm'!$K$15>=E47,E47*(G47/3.6)+H$6,(G47/3.6+G46/3.6)/2*(E47-E46)+H46) -> 21.57305556 | N47: 47 | O47: FALSE | P47: FALSE | R47: FALSE
B48: =IF(((B$6/3.6)-('Dropdown-Daten'!$O$55*E48))*3.6>0,((B$6/3.6)-('Dropdown-Daten'!$O$55*E48))*3.6,0) -> 1.84 | C48: =IF(B48=0,C47,(E48/2*(B48/3.6+'Dropdown-Daten'!$H$50/3.6))) -> 50.65666667 | E48: 4.2 | F48: 28.77 | G48: =IF('Eingabe - Diagramm'!$K$15>=E48,'Dropdown-Daten'!$H$50,(('Dropdown-Daten'!$H$50/3.6)-('Dropdown-Daten'!$O$66*(E48-'Eingabe - Diagramm'!$K$15)))*3.6) -> 10.12 | H48: 21.88666667 | K48: 21.88666667 | L48: =IF('Eingabe - Diagramm'!$K$15>=E48,E48*(G48/3.6)+H$6,(G48/3.6+G47/3.6)/2*(E48-E47)+H47) -> 21.88666667 | N48: 48 | O48: FALSE | P48: FALSE | R48: FALSE
B49: =IF(((B$6/3.6)-('Dropdown-Daten'!$O$55*E49))*3.6>0,((B$6/3.6)-('Dropdown-Daten'!$O$55*E49))*3.6,0) -> 0 | C49: =IF(B49=0,C48,(E49/2*(B49/3.6+'Dropdown-Daten'!$H$50/3.6))) -> 50.65666667 | E49: 4.3 | F49: 28.52138889 | G49: =IF('Eingabe - Diagramm'!$K$15>=E49,'Dropdown-Daten'!$H$50,(('Dropdown-Daten'!$H$50/3.6)-('Dropdown-Daten'!$O$66*(E49-'Eingabe - Diagramm'!$K$15)))*3.6) -> 7.78 | H49: 22.13527778 | K49: 22.13527778 | L49: =IF('Eingabe - Diagramm'!$K$15>=E49,E49*(G49/3.6)+H$6,(G49/3.6+G48/3.6)/2*(E49-E48)+H48) -> 22.13527778 | N49: 49 | O49: FALSE | P49: =AND(O49=TRUE,O48=FALSE) -> FALSE | R49: FALSE
B50: =IF(((B$6/3.6)-('Dropdown-Daten'!$O$55*E50))*3.6>0,((B$6/3.6)-('Dropdown-Daten'!$O$55*E50))*3.6,0) -> 0 | C50: =IF(B50=0,C49,(E50/2*(B50/3.6+'Dropdown-Daten'!$H$50/3.6))) -> 50.65666667 | E50: 4.4 | F50: 28.33777778 | G50: =IF('Eingabe - Diagramm'!$K$15>=E50,'Dropdown-Daten'!$H$50,(('Dropdown-Daten'!$H$50/3.6)-('Dropdown-Daten'!$O$66*(E50-'Eingabe - Diagramm'!$K$15)))*3.6) -> 5.44 | H50: 22.31888889 | K50: 22.31888889 | L50: =IF('Eingabe - Diagramm'!$K$15>=E50,E50*(G50/3.6)+H$6,(G50/3.6+G49/3.6)/2*(E50-E49)+H49) -> 22.31888889 | N50: 50 | O50: FALSE | P50: FALSE | R50: FALSE
B51: =IF(((B$6/3.6)-('Dropdown-Daten'!$O$55*E51))*3.6>0,((B$6/3.6)-('Dropdown-Daten'!$O$55*E51))*3.6,0) -> 0 | C51: =IF(B51=0,C50,(E51/2*(B51/3.6+'Dropdown-Daten'!$H$50/3.6))) -> 50.65666667 | E51: 4.5 | F51: 28.21916667 | G51: =IF('Eingabe - Diagramm'!$K$15>=E51,'Dropdown-Daten'!$H$50,(('Dropdown-Daten'!$H$50/3.6)-('Dropdown-Daten'!$O$66*(E51-'Eingabe - Diagramm'!$K$15)))*3.6) -> 3.1 | H51: 22.4375 | K51: 22.4375 | L51: =IF('Eingabe - Diagramm'!$K$15>=E51,E51*(G51/3.6)+H$6,(G51/3.6+G50/3.6)/2*(E51-E50)+H50) -> 22.4375 | N51: 51 | O51: FALSE | P51: FALSE | R51: FALSE
B52: =IF(((B$6/3.6)-('Dropdown-Daten'!$O$55*E52))*3.6>0,((B$6/3.6)-('Dropdown-Daten'!$O$55*E52))*3.6,0) -> 0 | C52: =IF(B52=0,C51,(E52/2*(B52/3.6+'Dropdown-Daten'!$H$50/3.6))) -> 50.65666667 | E52: 4.6 | F52: 28.16555556 | G52: =IF('Eingabe - Diagramm'!$K$15>=E52,'Dropdown-Daten'!$H$50,(('Dropdown-Daten'!$H$50/3.6)-('Dropdown-Daten'!$O$66*(E52-'Eingabe - Diagramm'!$K$15)))*3.6) -> 0.76 | H52: 22.49111111 | K52: 22.49111111 | L52: =IF('Eingabe - Diagramm'!$K$15>=E52,E52*(G52/3.6)+H$6,(G52/3.6+G51/3.6)/2*(E52-E51)+H51) -> 22.49111111 | N52: 52 | O52: FALSE | P52: FALSE | R52: FALSE
B53: =IF(((B$6/3.6)-('Dropdown-Daten'!$O$55*E53))*3.6>0,((B$6/3.6)-('Dropdown-Daten'!$O$55*E53))*3.6,0) -> 0 | C53: =IF(B53=0,C52,(E53/2*(B53/3.6+'Dropdown-Daten'!$H$50/3.6))) -> 50.65666667 | E53: 4.7 | F53: 28.16555556 | G53: =IF('Eingabe - Diagramm'!$K$15>=E53,'Dropdown-Daten'!$H$50,(('Dropdown-Daten'!$H$50/3.6)-('Dropdown-Daten'!$O$66*(E53-'Eingabe - Diagramm'!$K$15)))*3.6) -> -1.58 | H53: =IF(G53>0,L53,H52) -> 22.49111111 | K53: 22.49111111 | L53: =IF('Eingabe - Diagramm'!$K$15>=E53,E53*(G53/3.6)+H$6,(G53/3.6+G52/3.6)/2*(E53-E52)+H52) -> 22.47972222 | N53: 53 | O53: FALSE | P53: FALSE | R53: FALSE
B54: =IF(((B$6/3.6)-('Dropdown-Daten'!$O$55*E54))*3.6>0,((B$6/3.6)-('Dropdown-Daten'!$O$55*E54))*3.6,0) -> 0 | C54: =IF(B54=0,C53,(E54/2*(B54/3.6+'Dropdown-Daten'!$H$50/3.6))) -> 50.65666667 | E54: 4.8 | F54: =C54-H54 -> 28.16555556 | G54: =IF('Eingabe - Diagramm'!$K$15>=E54,'Dropdown-Daten'!$H$50,(('Dropdown-Daten'!$H$50/3.6)-('Dropdown-Daten'!$O$66*(E54-'Eingabe - Diagramm'!$K$15)))*3.6) -> -3.92 | H54: 22.49111111 | K54: 22.49111111 | L54: =IF('Eingabe - Diagramm'!$K$15>=E54,E54*(G54/3.6)+H$6,(G54/3.6+G53/3.6)/2*(E54-E53)+H53) -> 22.41472222 | N54: 54 | O54: FALSE | P54: FALSE | R54: FALSE
B55: =IF(((B$6/3.6)-('Dropdown-Daten'!$O$55*E55))*3.6>0,((B$6/3.6)-('Dropdown-Daten'!$O$55*E55))*3.6,0) -> 0 | C55: =IF(B55=0,C54,(E55/2*(B55/3.6+'Dropdown-Daten'!$H$50/3.6))) -> 50.65666667 | E55: 4.9 | F55: 28.16555556 | G55: =IF('Eingabe - Diagramm'!$K$15>=E55,'Dropdown-Daten'!$H$50,(('Dropdown-Daten'!$H$50/3.6)-('Dropdown-Daten'!$O$66*(E55-'Eingabe - Diagramm'!$K$15)))*3.6) -> -6.26 | H55: 22.49111111 | K55: 22.49111111 | L55: =IF('Eingabe - Diagramm'!$K$15>=E55,E55*(G55/3.6)+H$6,(G55/3.6+G54/3.6)/2*(E55-E54)+H54) -> 22.34972222 | N55: 55 | O55: FALSE | P55: FALSE | R55: FALSE
B56: =IF(((B$6/3.6)-('Dropdown-Daten'!$O$55*E56))*3.6>0,((B$6/3.6)-('Dropdown-Daten'!$O$55*E56))*3.6,0) -> 0 | C56: =IF(B56=0,C55,(E56/2*(B56/3.6+'Dropdown-Daten'!$H$50/3.6))) -> 50.65666667 | E56: 5 | F56: 28.16555556 | G56: =IF('Eingabe - Diagramm'!$K$15>=E56,'Dropdown-Daten'!$H$50,(('Dropdown-Daten'!$H$50/3.6)-('Dropdown-Daten'!$O$66*(E56-'Eingabe - Diagramm'!$K$15)))*3.6) -> -8.6 | H56: 22.49111111 | K56: 22.49111111 | L56: =IF('Eingabe - Diagramm'!$K$15>=E56,E56*(G56/3.6)+H$6,(G56/3.6+G55/3.6)/2*(E56-E55)+H55) -> 22.28472222 | N56: 56 | O56: FALSE | P56: =AND(O56=TRUE,O55=FALSE) -> FALSE | R56: FALSE
B57: =IF(((B$6/3.6)-('Dropdown-Daten'!$O$55*E57))*3.6>0,((B$6/3.6)-('Dropdown-Daten'!$O$55*E57))*3.6,0) -> 0 | C57: =IF(B57=0,C56,(E57/2*(B57/3.6+'Dropdown-Daten'!$H$50/3.6))) -> 50.65666667 | E57: 5.1 | F57: 28.16555556 | G57: =IF('Eingabe - Diagramm'!$K$15>=E57,'Dropdown-Daten'!$H$50,(('Dropdown-Daten'!$H$50/3.6)-('Dropdown-Daten'!$O$66*(E57-'Eingabe - Diagramm'!$K$15)))*3.6) -> -10.94 | H57: 22.49111111 | K57: 22.49111111 | L57: =IF('Eingabe - Diagramm'!$K$15>=E57,E57*(G57/3.6)+H$6,(G57/3.6+G56/3.6)/2*(E57-E56)+H56) -> 22.21972222 | N57: 57 | O57: FALSE | P57: FALSE | R57: FALSE
B58: =IF(((B$6/3.6)-('Dropdown-Daten'!$O$55*E58))*3.6>0,((B$6/3.6)-('Dropdown-Daten'!$O$55*E58))*3.6,0) -> 0 | C58: =IF(B58=0,C57,(E58/2*(B58/3.6+'Dropdown-Daten'!$H$50/3.6))) -> 50.65666667 | E58: 5.2 | F58: 28.16555556 | G58: =IF('Eingabe - Diagramm'!$K$15>=E58,'Dropdown-Daten'!$H$50,(('Dropdown-Daten'!$H$50/3.6)-('Dropdown-Daten'!$O$66*(E58-'Eingabe - Diagramm'!$K$15)))*3.6) -> -13.28 | H58: 22.49111111 | K58: 22.49111111 | L58: =IF('Eingabe - Diagramm'!$K$15>=E58,E58*(G58/3.6)+H$6,(G58/3.6+G57/3.6)/2*(E58-E57)+H57) -> 22.15472222 | N58: 58 | O58: FALSE | P58: FALSE | R58: FALSE
B59: =IF(((B$6/3.6)-('Dropdown-Daten'!$O$55*E59))*3.6>0,((B$6/3.6)-('Dropdown-Daten'!$O$55*E59))*3.6,0) -> 0 | C59: =IF(B59=0,C58,(E59/2*(B59/3.6+'Dropdown-Daten'!$H$50/3.6))) -> 50.65666667 | E59: 5.3 | F59: 28.16555556 | G59: =IF('Eingabe - Diagramm'!$K$15>=E59,'Dropdown-Daten'!$H$50,(('Dropdown-Daten'!$H$50/3.6)-('Dropdown-Daten'!$O$66*(E59-'Eingabe - Diagramm'!$K$15)))*3.6) -> -15.62 | H59: 22.49111111 | K59: 22.49111111 | L59: =IF('Eingabe - Diagramm'!$K$15>=E59,E59*(G59/3.6)+H$6,(G59/3.6+G58/3.6)/2*(E59-E58)+H58) -> 22.08972222 | N59: 59 | O59: FALSE | P59: FALSE | R59: =AND(O59=TRUE,O58=FALSE) -> FALSE
B60: =IF(((B$6/3.6)-('Dropdown-Daten'!$O$55*E60))*3.6>0,((B$6/3.6)-('Dropdown-Daten'!$O$55*E60))*3.6,0) -> 0 | C60: =IF(B60=0,C59,(E60/2*(B60/3.6+'Dropdown-Daten'!$H$50/3.6))) -> 50.65666667 | E60: 5.4 | F60: 28.16555556 | G60: =IF('Eingabe - Diagramm'!$K$15>=E60,'Dropdown-Daten'!$H$50,(('Dropdown-Daten'!$H$50/3.6)-('Dropdown-Daten'!$O$66*(E60-'Eingabe - Diagramm'!$K$15)))*3.6) -> -17.96 | H60: 22.49111111 | K60: 22.49111111 | L60: =IF('Eingabe - Diagramm'!$K$15>=E60,E60*(G60/3.6)+H$6,(G60/3.6+G59/3.6)/2*(E60-E59)+H59) -> 22.02472222 | N60: 60 | O60: FALSE | P60: FALSE | R60: FALSE
B61: =IF(((B$6/3.6)-('Dropdown-Daten'!$O$55*E61))*3.6>0,((B$6/3.6)-('Dropdown-Daten'!$O$55*E61))*3.6,0) -> 0 | C61: =IF(B61=0,C60,(E61/2*(B61/3.6+'Dropdown-Daten'!$H$50/3.6))) -> 50.65666667 | E61: 5.5 | F61: 28.16555556 | G61: =IF('Eingabe - Diagramm'!$K$15>=E61,'Dropdown-Daten'!$H$50,(('Dropdown-Daten'!$H$50/3.6)-('Dropdown-Daten'!$O$66*(E61-'Eingabe - Diagramm'!$K$15)))*3.6) -> -20.3 | H61: 22.49111111 | K61: 22.49111111 | L61: =IF('Eingabe - Diagramm'!$K$15>=E61,E61*(G61/3.6)+H$6,(G61/3.6+G60/3.6)/2*(E61-E60)+H60) -> 21.95972222 | N61: 61 | O61: FALSE | P61: FALSE | R61: FALSE
B62: =IF(((B$6/3.6)-('Dropdown-Daten'!$O$55*E62))*3.6>0,((B$6/3.6)-('Dropdown-Daten'!$O$55*E62))*3.6,0) -> 0 | C62: =IF(B62=0,C61,(E62/2*(B62/3.6+'Dropdown-Daten'!$H$50/3.6))) -> 50.65666667 | E62: 5.6 | F62: 28.16555556 | G62: =IF('Eingabe - Diagramm'!$K$15>=E62,'Dropdown-Daten'!$H$50,(('Dropdown-Daten'!$H$50/3.6)-('Dropdown-Daten'!$O$66*(E62-'Eingabe - Diagramm'!$K$15)))*3.6) -> -22.64 | H62: 22.49111111 | K62: 22.49111111 | L62: =IF('Eingabe - Diagramm'!$K$15>=E62,E62*(G62/3.6)+H$6,(G62/3.6+G61/3.6)/2*(E62-E61)+H61) -> 21.89472222 | N62: 62 | O62: FALSE | P62: =AND(O62=TRUE,O61=FALSE) -> FALSE | R62: FALSE
B63: =IF(((B$6/3.6)-('Dropdown-Daten'!$O$55*E63))*3.6>0,((B$6/3.6)-('Dropdown-Daten'!$O$55*E63))*3.6,0) -> 0 | C63: =IF(B63=0,C62,(E63/2*(B63/3.6+'Dropdown-Daten'!$H$50/3.6))) -> 50.65666667 | E63: 5.7 | F63: 28.16555556 | G63: =IF('Eingabe - Diagramm'!$K$15>=E63,'Dropdown-Daten'!$H$50,(('Dropdown-Daten'!$H$50/3.6)-('Dropdown-Daten'!$O$66*(E63-'Eingabe - Diagramm'!$K$15)))*3.6) -> -24.98 | H63: 22.49111111 | K63: 22.49111111 | L63: =IF('Eingabe - Diagramm'!$K$15>=E63,E63*(G63/3.6)+H$6,(G63/3.6+G62/3.6)/2*(E63-E62)+H62) -> 21.82972222 | N63: 63 | O63: FALSE | P63: FALSE | R63: FALSE
B64: =IF(((B$6/3.6)-('Dropdown-Daten'!$O$55*E64))*3.6>0,((B$6/3.6)-('Dropdown-Daten'!$O$55*E64))*3.6,0) -> 0 | C64: =IF(B64=0,C63,(E64/2*(B64/3.6+'Dropdown-Daten'!$H$50/3.6))) -> 50.65666667 | E64: 5.8 | F64: 28.16555556 | G64: =IF('Eingabe - Diagramm'!$K$15>=E64,'Dropdown-Daten'!$H$50,(('Dropdown-Daten'!$H$50/3.6)-('Dropdown-Daten'!$O$66*(E64-'Eingabe - Diagramm'!$K$15)))*3.6) -> -27.32 | H64: 22.49111111 | K64: 22.49111111 | L64: =IF('Eingabe - Diagramm'!$K$15>=E64,E64*(G64/3.6)+H$6,(G64/3.6+G63/3.6)/2*(E64-E63)+H63) -> 21.76472222 | N64: 64 | O64: FALSE | P64: FALSE | R64: FALSE
B65: =IF(((B$6/3.6)-('Dropdown-Daten'!$O$55*E65))*3.6>0,((B$6/3.6)-('Dropdown-Daten'!$O$55*E65))*3.6,0) -> 0 | C65: =IF(B65=0,C64,(E65/2*(B65/3.6+'Dropdown-Daten'!$H$50/3.6))) -> 50.65666667 | E65: 5.9 | F65: 28.16555556 | G65: =IF('Eingabe - Diagramm'!$K$15>=E65,'Dropdown-Daten'!$H$50,(('Dropdown-Daten'!$H$50/3.6)-('Dropdown-Daten'!$O$66*(E65-'Eingabe - Diagramm'!$K$15)))*3.6) -> -29.66 | H65: 22.49111111 | K65: 22.49111111 | L65: =IF('Eingabe - Diagramm'!$K$15>=E65,E65*(G65/3.6)+H$6,(G65/3.6+G64/3.6)/2*(E65-E64)+H64) -> 21.69972222 | N65: 65 | O65: FALSE | P65: FALSE | R65: FALSE
B66: =IF(((B$6/3.6)-('Dropdown-Daten'!$O$55*E66))*3.6>0,((B$6/3.6)-('Dropdown-Daten'!$O$55*E66))*3.6,0) -> 0 | C66: =IF(B66=0,C65,(E66/2*(B66/3.6+'Dropdown-Daten'!$H$50/3.6))) -> 50.65666667 | E66: 6 | F66: 28.16555556 | G66: =IF('Eingabe - Diagramm'!$K$15>=E66,'Dropdown-Daten'!$H$50,(('Dropdown-Daten'!$H$50/3.6)-('Dropdown-Daten'!$O$66*(E66-'Eingabe - Diagramm'!$K$15)))*3.6) -> -32 | H66: 22.49111111 | K66: 22.49111111 | L66: =IF('Eingabe - Diagramm'!$K$15>=E66,E66*(G66/3.6)+H$6,(G66/3.6+G65/3.6)/2*(E66-E65)+H65) -> 21.63472222 | N66: 66 | O66: FALSE | P66: FALSE | R66: FALSE
B67: =IF(((B$6/3.6)-('Dropdown-Daten'!$O$55*E67))*3.6>0,((B$6/3.6)-('Dropdown-Daten'!$O$55*E67))*3.6,0) -> 0 | C67: =IF(B67=0,C66,(E67/2*(B67/3.6+'Dropdown-Daten'!$H$50/3.6))) -> 50.65666667 | E67: 6.1 | F67: 28.16555556 | G67: =IF('Eingabe - Diagramm'!$K$15>=E67,'Dropdown-Daten'!$H$50,(('Dropdown-Daten'!$H$50/3.6)-('Dropdown-Daten'!$O$66*(E67-'Eingabe - Diagramm'!$K$15)))*3.6) -> -34.34 | H67: 22.49111111 | K67: 22.49111111 | L67: =IF('Eingabe - Diagramm'!$K$15>=E67,E67*(G67/3.6)+H$6,(G67/3.6+G66/3.6)/2*(E67-E66)+H66) -> 21.56972222 | N67: 67 | O67: FALSE | P67: FALSE | R67: FALSE
B68: =IF(((B$6/3.6)-('Dropdown-Daten'!$O$55*E68))*3.6>0,((B$6/3.6)-('Dropdown-Daten'!$O$55*E68))*3.6,0) -> 0 | C68: =IF(B68=0,C67,(E68/2*(B68/3.6+'Dropdown-Daten'!$H$50/3.6))) -> 50.65666667 | E68: 6.2 | F68: 28.16555556 | G68: =IF('Eingabe - Diagramm'!$K$15>=E68,'Dropdown-Daten'!$H$50,(('Dropdown-Daten'!$H$50/3.6)-('Dropdown-Daten'!$O$66*(E68-'Eingabe - Diagramm'!$K$15)))*3.6) -> -36.68 | H68: 22.49111111 | K68: 22.49111111 | L68: =IF('Eingabe - Diagramm'!$K$15>=E68,E68*(G68/3.6)+H$6,(G68/3.6+G67/3.6)/2*(E68-E67)+H67) -> 21.50472222 | N68: 68 | O68: FALSE | P68: FALSE | R68: FALSE
B69: =IF(((B$6/3.6)-('Dropdown-Daten'!$O$55*E69))*3.6>0,((B$6/3.6)-('Dropdown-Daten'!$O$55*E69))*3.6,0) -> 0 | C69: =IF(B69=0,C68,(E69/2*(B69/3.6+'Dropdown-Daten'!$H$50/3.6))) -> 50.65666667 | E69: 6.3 | F69: 28.16555556 | G69: =IF('Eingabe - Diagramm'!$K$15>=E69,'Dropdown-Daten'!$H$50,(('Dropdown-Daten'!$H$50/3.6)-('Dropdown-Daten'!$O$66*(E69-'Eingabe - Diagramm'!$K$15)))*3.6) -> -39.02 | H69: 22.49111111 | K69: 22.49111111 | L69: =IF('Eingabe - Diagramm'!$K$15>=E69,E69*(G69/3.6)+H$6,(G69/3.6+G68/3.6)/2*(E69-E68)+H68) -> 21.43972222 | N69: 69 | O69: FALSE | P69: FALSE | R69: FALSE
B70: =IF(((B$6/3.6)-('Dropdown-Daten'!$O$55*E70))*3.6>0,((B$6/3.6)-('Dropdown-Daten'!$O$55*E70))*3.6,0) -> 0 | C70: =IF(B70=0,C69,(E70/2*(B70/3.6+'Dropdown-Daten'!$H$50/3.6))) -> 50.65666667 | E70: 6.4 | F70: 28.16555556 | G70: =IF('Eingabe - Diagramm'!$K$15>=E70,'Dropdown-Daten'!$H$50,(('Dropdown-Daten'!$H$50/3.6)-('Dropdown-Daten'!$O$66*(E70-'Eingabe - Diagramm'!$K$15)))*3.6) -> -41.36 | H70: 22.49111111 | K70: =IF(G70>0,H70,K69) -> 22.49111111 | L70: =IF('Eingabe - Diagramm'!$K$15>=E70,E70*(G70/3.6)+H$6,(G70/3.6+G69/3.6)/2*(E70-E69)+H69) -> 21.37472222 | N70: 70 | O70: FALSE | P70: =AND(O70=TRUE,O69=FALSE) -> FALSE | R70: FALSE | U70: =IF(P70=TRUE,E69,"") -> 
B71: =IF(((B$6/3.6)-('Dropdown-Daten'!$O$55*E71))*3.6>0,((B$6/3.6)-('Dropdown-Daten'!$O$55*E71))*3.6,0) -> 0 | C71: =IF(B71=0,C70,(E71/2*(B71/3.6+'Dropdown-Daten'!$H$50/3.6))) -> 50.65666667 | E71: 6.5 | F71: 28.16555556 | G71: =IF('Eingabe - Diagramm'!$K$15>=E71,'Dropdown-Daten'!$H$50,(('Dropdown-Daten'!$H$50/3.6)-('Dropdown-Daten'!$O$66*(E71-'Eingabe - Diagramm'!$K$15)))*3.6) -> -43.7 | H71: 22.49111111 | K71: 22.49111111 | L71: =IF('Eingabe - Diagramm'!$K$15>=E71,E71*(G71/3.6)+H$6,(G71/3.6+G70/3.6)/2*(E71-E70)+H70) -> 21.30972222 | N71: 71 | O71: =AND(F71<0) -> FALSE | P71: FALSE | Q71: =IF(P71,B71,"") ->  | R71: FALSE | S71: =IF(R71=TRUE,G71,"") -> 
B72: =IF(((B$6/3.6)-('Dropdown-Daten'!$O$55*E72))*3.6>0,((B$6/3.6)-('Dropdown-Daten'!$O$55*E72))*3.6,0) -> 0 | C72: =IF(B72=0,C71,(E72/2*(B72/3.6+'Dropdown-Daten'!$H$50/3.6))) -> 50.65666667 | E72: 6.6 | F72: =C72-H72 -> 28.16555556 | G72: =IF('Eingabe - Diagramm'!$K$15>=E72,'Dropdown-Daten'!$H$50,(('Dropdown-Daten'!$H$50/3.6)-('Dropdown-Daten'!$O$66*(E72-'Eingabe - Diagramm'!$K$15)))*3.6) -> -46.04 | H72: =IF(G72>0,L72,H71) -> 22.49111111 | K72: 22.49111111 | L72: =IF('Eingabe - Diagramm'!$K$15>=E72,E72*(G72/3.6)+H$6,(G72/3.6+G71/3.6)/2*(E72-E71)+H71) -> 21.24472222 | N72: =IF(O72=FALSE,N71+1) -> 72 | O72: FALSE | P72: =AND(O72=TRUE,O71=FALSE) -> FALSE | R72: =AND(O72=TRUE,O71=FALSE) -> FALSE
B73: =IF(((B$6/3.6)-('Dropdown-Daten'!$O$55*E73))*3.6>0,((B$6/3.6)-('Dropdown-Daten'!$O$55*E73))*3.6,0) -> 0 | C73: =IF(B73=0,C72,(E73/2*(B73/3.6+'Dropdown-Daten'!$H$50/3.6))) -> 50.65666667 | E73: 6.7 | F73: 28.16555556 | G73: =IF('Eingabe - Diagramm'!$K$15>=E73,'Dropdown-Daten'!$H$50,(('Dropdown-Daten'!$H$50/3.6)-('Dropdown-Daten'!$O$66*(E73-'Eingabe - Diagramm'!$K$15)))*3.6) -> -48.38 | H73: =IF(G73>0,L73,H72) -> 22.49111111 | K73: 22.49111111 | L73: =IF('Eingabe - Diagramm'!$K$15>=E73,E73*(G73/3.6)+H$6,(G73/3.6+G72/3.6)/2*(E73-E72)+H72) -> 21.17972222 | N73: 73 | O73: FALSE | P73: FALSE | R73: FALSE
B74: =IF(((B$6/3.6)-('Dropdown-Daten'!$O$55*E74))*3.6>0,((B$6/3.6)-('Dropdown-Daten'!$O$55*E74))*3.6,0) -> 0 | C74: =IF(B74=0,C73,(E74/2*(B74/3.6+'Dropdown-Daten'!$H$50/3.6))) -> 50.65666667 | E74: 6.8 | F74: 28.16555556 | G74: =IF('Eingabe - Diagramm'!$K$15>=E74,'Dropdown-Daten'!$H$50,(('Dropdown-Daten'!$H$50/3.6)-('Dropdown-Daten'!$O$66*(E74-'Eingabe - Diagramm'!$K$15)))*3.6) -> -50.72 | H74: =IF(G74>0,L74,H73) -> 22.49111111 | K74: 22.49111111 | L74: =IF('Eingabe - Diagramm'!$K$15>=E74,E74*(G74/3.6)+H$6,(G74/3.6+G73/3.6)/2*(E74-E73)+H73) -> 21.11472222 | N74: 74 | O74: FALSE | P74: FALSE | R74: =AND(O74=TRUE,O73=FALSE) -> FALSE
B75: =IF(((B$6/3.6)-('Dropdown-Daten'!$O$55*E75))*3.6>0,((B$6/3.6)-('Dropdown-Daten'!$O$55*E75))*3.6,0) -> 0 | C75: =IF(B75=0,C74,(E75/2*(B75/3.6+'Dropdown-Daten'!$H$50/3.6))) -> 50.65666667 | E75: 6.9 | F75: 28.16555556 | G75: =IF('Eingabe - Diagramm'!$K$15>=E75,'Dropdown-Daten'!$H$50,(('Dropdown-Daten'!$H$50/3.6)-('Dropdown-Daten'!$O$66*(E75-'Eingabe - Diagramm'!$K$15)))*3.6) -> -53.06 | H75: =IF(G75>0,L75,H74) -> 22.49111111 | K75: 22.49111111 | L75: =IF('Eingabe - Diagramm'!$K$15>=E75,E75*(G75/3.6)+H$6,(G75/3.6+G74/3.6)/2*(E75-E74)+H74) -> 21.04972222 | N75: 75 | O75: FALSE | P75: FALSE | R75: FALSE
B76: =IF(((B$6/3.6)-('Dropdown-Daten'!$O$55*E76))*3.6>0,((B$6/3.6)-('Dropdown-Daten'!$O$55*E76))*3.6,0) -> 0 | C76: =IF(B76=0,C75,(E76/2*(B76/3.6+'Dropdown-Daten'!$H$50/3.6))) -> 50.65666667 | E76: 7 | F76: 28.16555556 | G76: =IF('Eingabe - Diagramm'!$K$15>=E76,'Dropdown-Daten'!$H$50,(('Dropdown-Daten'!$H$50/3.6)-('Dropdown-Daten'!$O$66*(E76-'Eingabe - Diagramm'!$K$15)))*3.6) -> -55.4 | H76: =IF(G76>0,L76,H75) -> 22.49111111 | K76: 22.49111111 | L76: =IF('Eingabe - Diagramm'!$K$15>=E76,E76*(G76/3.6)+H$6,(G76/3.6+G75/3.6)/2*(E76-E75)+H75) -> 20.98472222 | N76: 76 | O76: FALSE | P76: FALSE | R76: FALSE
B77: =IF(((B$6/3.6)-('Dropdown-Daten'!$O$55*E77))*3.6>0,((B$6/3.6)-('Dropdown-Daten'!$O$55*E77))*3.6,0) -> 0 | C77: =IF(B77=0,C76,(E77/2*(B77/3.6+'Dropdown-Daten'!$H$50/3.6))) -> 50.65666667 | E77: 7.1 | F77: 28.16555556 | G77: =IF('Eingabe - Diagramm'!$K$15>=E77,'Dropdown-Daten'!$H$50,(('Dropdown-Daten'!$H$50/3.6)-('Dropdown-Daten'!$O$66*(E77-'Eingabe - Diagramm'!$K$15)))*3.6) -> -57.74 | H77: 22.49111111 | K77: 22.49111111 | L77: =IF('Eingabe - Diagramm'!$K$15>=E77,E77*(G77/3.6)+H$6,(G77/3.6+G76/3.6)/2*(E77-E76)+H76) -> 20.91972222 | N77: 77 | O77: FALSE | P77: FALSE | R77: FALSE
B78: =IF(((B$6/3.6)-('Dropdown-Daten'!$O$55*E78))*3.6>0,((B$6/3.6)-('Dropdown-Daten'!$O$55*E78))*3.6,0) -> 0 | C78: =IF(B78=0,C77,(E78/2*(B78/3.6+'Dropdown-Daten'!$H$50/3.6))) -> 50.65666667 | E78: 7.2 | F78: 28.16555556 | G78: =IF('Eingabe - Diagramm'!$K$15>=E78,'Dropdown-Daten'!$H$50,(('Dropdown-Daten'!$H$50/3.6)-('Dropdown-Daten'!$O$66*(E78-'Eingabe - Diagramm'!$K$15)))*3.6) -> -60.08 | H78: 22.49111111 | K78: 22.49111111 | L78: =IF('Eingabe - Diagramm'!$K$15>=E78,E78*(G78/3.6)+H$6,(G78/3.6+G77/3.6)/2*(E78-E77)+H77) -> 20.85472222 | N78: 78 | O78: FALSE | P78: =AND(O78=TRUE,O77=FALSE) -> FALSE | R78: FALSE
B79: =IF(((B$6/3.6)-('Dropdown-Daten'!$O$55*E79))*3.6>0,((B$6/3.6)-('Dropdown-Daten'!$O$55*E79))*3.6,0) -> 0 | C79: =IF(B79=0,C78,(E79/2*(B79/3.6+'Dropdown-Daten'!$H$50/3.6))) -> 50.65666667 | E79: 7.3 | F79: 28.16555556 | G79: =IF('Eingabe - Diagramm'!$K$15>=E79,'Dropdown-Daten'!$H$50,(('Dropdown-Daten'!$H$50/3.6)-('Dropdown-Daten'!$O$66*(E79-'Eingabe - Diagramm'!$K$15)))*3.6) -> -62.42 | H79: 22.49111111 | K79: 22.49111111 | L79: =IF('Eingabe - Diagramm'!$K$15>=E79,E79*(G79/3.6)+H$6,(G79/3.6+G78/3.6)/2*(E79-E78)+H78) -> 20.78972222 | N79: 79 | O79: FALSE | P79: =AND(O79=TRUE,O78=FALSE) -> FALSE | R79: FALSE
B80: =IF(((B$6/3.6)-('Dropdown-Daten'!$O$55*E80))*3.6>0,((B$6/3.6)-('Dropdown-Daten'!$O$55*E80))*3.6,0) -> 0 | C80: =IF(B80=0,C79,(E80/2*(B80/3.6+'Dropdown-Daten'!$H$50/3.6))) -> 50.65666667 | E80: 7.4 | F80: 28.16555556 | G80: =IF('Eingabe - Diagramm'!$K$15>=E80,'Dropdown-Daten'!$H$50,(('Dropdown-Daten'!$H$50/3.6)-('Dropdown-Daten'!$O$66*(E80-'Eingabe - Diagramm'!$K$15)))*3.6) -> -64.76 | H80: 22.49111111 | K80: 22.49111111 | L80: =IF('Eingabe - Diagramm'!$K$15>=E80,E80*(G80/3.6)+H$6,(G80/3.6+G79/3.6)/2*(E80-E79)+H79) -> 20.72472222 | N80: 80 | O80: FALSE | P80: FALSE | R80: FALSE
B81: =IF(((B$6/3.6)-('Dropdown-Daten'!$O$55*E81))*3.6>0,((B$6/3.6)-('Dropdown-Daten'!$O$55*E81))*3.6,0) -> 0 | C81: =IF(B81=0,C80,(E81/2*(B81/3.6+'Dropdown-Daten'!$H$50/3.6))) -> 50.65666667 | E81: 7.5 | F81: 28.16555556 | G81: =IF('Eingabe - Diagramm'!$K$15>=E81,'Dropdown-Daten'!$H$50,(('Dropdown-Daten'!$H$50/3.6)-('Dropdown-Daten'!$O$66*(E81-'Eingabe - Diagramm'!$K$15)))*3.6) -> -67.1 | H81: 22.49111111 | K81: 22.49111111 | L81: =IF('Eingabe - Diagramm'!$K$15>=E81,E81*(G81/3.6)+H$6,(G81/3.6+G80/3.6)/2*(E81-E80)+H80) -> 20.65972222 | N81: =IF(O81=FALSE,N80+1) -> 81 | O81: =AND(F81<0) -> FALSE | P81: FALSE | R81: FALSE
B82: =IF(((B$6/3.6)-('Dropdown-Daten'!$O$55*E82))*3.6>0,((B$6/3.6)-('Dropdown-Daten'!$O$55*E82))*3.6,0) -> 0 | C82: =IF(B82=0,C81,(E82/2*(B82/3.6+'Dropdown-Daten'!$H$50/3.6))) -> 50.65666667 | E82: 7.6 | F82: 28.16555556 | G82: =IF('Eingabe - Diagramm'!$K$15>=E82,'Dropdown-Daten'!$H$50,(('Dropdown-Daten'!$H$50/3.6)-('Dropdown-Daten'!$O$66*(E82-'Eingabe - Diagramm'!$K$15)))*3.6) -> -69.44 | H82: 22.49111111 | K82: 22.49111111 | L82: =IF('Eingabe - Diagramm'!$K$15>=E82,E82*(G82/3.6)+H$6,(G82/3.6+G81/3.6)/2*(E82-E81)+H81) -> 20.59472222 | N82: 82 | O82: FALSE | P82: FALSE | R82: FALSE
B83: =IF(((B$6/3.6)-('Dropdown-Daten'!$O$55*E83))*3.6>0,((B$6/3.6)-('Dropdown-Daten'!$O$55*E83))*3.6,0) -> 0 | C83: =IF(B83=0,C82,(E83/2*(B83/3.6+'Dropdown-Daten'!$H$50/3.6))) -> 50.65666667 | E83: 7.7 | F83: 28.16555556 | G83: =IF('Eingabe - Diagramm'!$K$15>=E83,'Dropdown-Daten'!$H$50,(('Dropdown-Daten'!$H$50/3.6)-('Dropdown-Daten'!$O$66*(E83-'Eingabe - Diagramm'!$K$15)))*3.6) -> -71.78 | H83: 22.49111111 | K83: 22.49111111 | L83: =IF('Eingabe - Diagramm'!$K$15>=E83,E83*(G83/3.6)+H$6,(G83/3.6+G82/3.6)/2*(E83-E82)+H82) -> 20.52972222 | N83: 83 | O83: FALSE | P83: FALSE | R83: FALSE
B84: =IF(((B$6/3.6)-('Dropdown-Daten'!$O$55*E84))*3.6>0,((B$6/3.6)-('Dropdown-Daten'!$O$55*E84))*3.6,0) -> 0 | C84: =IF(B84=0,C83,(E84/2*(B84/3.6+'Dropdown-Daten'!$H$50/3.6))) -> 50.65666667 | E84: 7.8 | F84: 28.16555556 | G84: =IF('Eingabe - Diagramm'!$K$15>=E84,'Dropdown-Daten'!$H$50,(('Dropdown-Daten'!$H$50/3.6)-('Dropdown-Daten'!$O$66*(E84-'Eingabe - Diagramm'!$K$15)))*3.6) -> -74.12 | H84: 22.49111111 | K84: 22.49111111 | L84: =IF('Eingabe - Diagramm'!$K$15>=E84,E84*(G84/3.6)+H$6,(G84/3.6+G83/3.6)/2*(E84-E83)+H83) -> 20.46472222 | N84: 84 | O84: FALSE | P84: FALSE | R84: =AND(O84=TRUE,O83=FALSE) -> FALSE
B85: =IF(((B$6/3.6)-('Dropdown-Daten'!$O$55*E85))*3.6>0,((B$6/3.6)-('Dropdown-Daten'!$O$55*E85))*3.6,0) -> 0 | C85: =IF(B85=0,C84,(E85/2*(B85/3.6+'Dropdown-Daten'!$H$50/3.6))) -> 50.65666667 | E85: 7.9 | F85: 28.16555556 | G85: =IF('Eingabe - Diagramm'!$K$15>=E85,'Dropdown-Daten'!$H$50,(('Dropdown-Daten'!$H$50/3.6)-('Dropdown-Daten'!$O$66*(E85-'Eingabe - Diagramm'!$K$15)))*3.6) -> -76.46 | H85: 22.49111111 | K85: 22.49111111 | L85: =IF('Eingabe - Diagramm'!$K$15>=E85,E85*(G85/3.6)+H$6,(G85/3.6+G84/3.6)/2*(E85-E84)+H84) -> 20.39972222 | N85: 85 | O85: FALSE | P85: FALSE | R85: =AND(O85=TRUE,O84=FALSE) -> FALSE
B86: =IF(((B$6/3.6)-('Dropdown-Daten'!$O$55*E86))*3.6>0,((B$6/3.6)-('Dropdown-Daten'!$O$55*E86))*3.6,0) -> 0 | C86: =IF(B86=0,C85,(E86/2*(B86/3.6+'Dropdown-Daten'!$H$50/3.6))) -> 50.65666667 | E86: 8 | F86: 28.16555556 | G86: =IF('Eingabe - Diagramm'!$K$15>=E86,'Dropdown-Daten'!$H$50,(('Dropdown-Daten'!$H$50/3.6)-('Dropdown-Daten'!$O$66*(E86-'Eingabe - Diagramm'!$K$15)))*3.6) -> -78.8 | H86: 22.49111111 | K86: 22.49111111 | L86: =IF('Eingabe - Diagramm'!$K$15>=E86,E86*(G86/3.6)+H$6,(G86/3.6+G85/3.6)/2*(E86-E85)+H85) -> 20.33472222 | N86: 86 | O86: FALSE | P86: FALSE | R86: =AND(O86=TRUE,O85=FALSE) -> FALSE
N87: =MAX(N6:N86) -> 86 | Q87: =SUM(Q6:Q86) -> 0 | R87: =SUM(R6:R86) -> 0 | S87: =SUM(S6:S86) -> 0 | U87: =SUM(U6:U86) -> 0 | V87: =SUM(V6:V86) -> 0
S88: =IF(S87=0,"",S87) ->  | U88: =IF(U87>0,U87) -> FALSE | V88: =IF(V87>0,V87) -> FALSE
R89: =IF(S87=0,TRUE,FALSE) -> TRUE | S89: =IF(S88="",#N/A,S87) -> 
F95: =IF($N$87>=6,E6,"") -> 0 | G95: =IF(F95="",#N/A,F95) -> 0
F96: =IF($N$87>=7,E7,"") -> 0.1 | G96: =IF(F96="",#N/A,F96) -> 0.1
F97: =IF($N$87>=8,E8,"") -> 0.2 | G97: 0.2
F98: =IF($N$87>=9,E9,"") -> 0.3 | G98: 0.3
F99: =IF($N$87>=10,E10,"") -> 0.4 | G99: 0.4
F100: =IF($N$87>=11,E11,"") -> 0.5 | G100: 0.5
F101: =IF($N$87>=12,E12,"") -> 0.6 | G101: 0.6
F102: =IF($N$87>=13,E13,"") -> 0.7 | G102: 0.7
F103: =IF($N$87>=14,E14,"") -> 0.8 | G103: 0.8
F104: =IF($N$87>=15,E15,"") -> 0.9 | G104: 0.9
F105: =IF($N$87>=16,E16,"") -> 1 | G105: 1
F106: =IF($N$87>=17,E17,"") -> 1.1 | G106: 1.1
F107: =IF($N$87>=18,E18,"") -> 1.2 | G107: 1.2
F108: =IF($N$87>=19,E19,"") -> 1.3 | G108: 1.3
F109: =IF($N$87>=20,E20,"") -> 1.4 | G109: 1.4
F110: =IF($N$87>=21,E21,"") -> 1.5 | G110: 1.5
F111: =IF($N$87>=22,E22,"") -> 1.6 | G111: 1.6
F112: =IF($N$87>=23,E23,"") -> 1.7 | G112: 1.7
F113: =IF($N$87>=24,E24,"") -> 1.8 | G113: 1.8
F114: =IF($N$87>=25,E25,"") -> 1.9 | G114: 1.9
F115: =IF($N$87>=26,E26,"") -> 2 | G115: 2
F116: =IF($N$87>=27,E27,"") -> 2.1 | G116: 2.1
F117: =IF($N$87>=28,E28,"") -> 2.2 | G117: 2.2
F118: =IF($N$87>=29,E29,"") -> 2.3 | G118: 2.3
F119: =IF($N$87>=30,E30,"") -> 2.4 | G119: 2.4
F120: =IF($N$87>=31,E31,"") -> 2.5 | G120: 2.5
F121: =IF($N$87>=32,E32,"") -> 2.6 | G121: 2.6
F122: =IF($N$87>=33,E33,"") -> 2.7 | G122: 2.7
F123: =IF($N$87>=34,E34,"") -> 2.8 | G123: 2.8
F124: =IF($N$87>=35,E35,"") -> 2.9 | G124: 2.9
F125: =IF($N$87>=36,E36,"") -> 3 | G125: 3
F126: =IF($N$87>=37,E37,"") -> 3.1 | G126: 3.1
F127: =IF($N$87>=38,E38,"") -> 3.2 | G127: 3.2
F128: =IF($N$87>=39,E39,"") -> 3.3 | G128: 3.3
F129: =IF($N$87>=40,E40,"") -> 3.4 | G129: 3.4
F130: =IF($N$87>=41,E41,"") -> 3.5 | G130: 3.5
F131: =IF($N$87>=42,E42,"") -> 3.6 | G131: 3.6
F132: =IF($N$87>=43,E43,"") -> 3.7 | G132: 3.7
F133: =IF($N$87>=44,E44,"") -> 3.8 | G133: 3.8
F134: =IF($N$87>=45,E45,"") -> 3.9 | G134: 3.9
F135: =IF($N$87>=46,E46,"") -> 4 | G135: 4
F136: =IF($N$87>=47,E47,"") -> 4.1 | G136: 4.1
F137: =IF($N$87>=48,E48,"") -> 4.2 | G137: 4.2
F138: =IF($N$87>=49,E49,"") -> 4.3 | G138: 4.3
F139: =IF($N$87>=50,E50,"") -> 4.4 | G139: 4.4
F140: =IF($N$87>=51,E51,"") -> 4.5 | G140: 4.5
F141: =IF($N$87>=52,E52,"") -> 4.6 | G141: 4.6
F142: =IF($N$87>=53,E53,"") -> 4.7 | G142: 4.7
F143: =IF($N$87>=54,E54,"") -> 4.8 | G143: 4.8
F144: =IF($N$87>=55,E55,"") -> 4.9 | G144: 4.9
F145: =IF($N$87>=56,E56,"") -> 5 | G145: 5
F146: =IF($N$87>=57,E57,"") -> 5.1 | G146: 5.1
F147: =IF($N$87>=58,E58,"") -> 5.2 | G147: 5.2
F148: =IF($N$87>=59,E59,"") -> 5.3 | G148: 5.3
F149: =IF($N$87>=60,E60,"") -> 5.4 | G149: 5.4
F150: =IF($N$87>=61,E61,"") -> 5.5 | G150: 5.5
F151: =IF($N$87>=62,E62,"") -> 5.6 | G151: 5.6
F152: =IF($N$87>=63,E63,"") -> 5.7 | G152: 5.7
F153: =IF($N$87>=64,E64,"") -> 5.8 | G153: 5.8
F154: =IF($N$87>=65,E65,"") -> 5.9 | G154: 5.9
F155: =IF($N$87>=66,E66,"") -> 6 | G155: 6
F156: =IF($N$87>=67,E67,"") -> 6.1 | G156: 6.1
F157: =IF($N$87>=68,E68,"") -> 6.2 | G157: 6.2
F158: =IF($N$87>=69,E69,"") -> 6.3 | G158: 6.3
F159: =IF($N$87>=70,E70,"") -> 6.4 | G159: 6.4
F160: =IF($N$87>=71,E71,"") -> 6.5 | G160: =IF(F160="",#N/A,F160) -> 6.5
F161: =IF($N$87>=72,E72,"") -> 6.6 | G161: 6.6
F162: =IF($N$87>=73,E73,"") -> 6.7 | G162: 6.7
F163: =IF($N$87>=74,E74,"") -> 6.8 | G163: 6.8
F164: =IF($N$87>=75,E75,"") -> 6.9 | G164: =IF(F164="",#N/A,F164) -> 6.9
F165: =IF($N$87>=76,E76,"") -> 7 | G165: 7
F166: =IF($N$87>=77,E77,"") -> 7.1 | G166: 7.1
F167: =IF($N$87>=78,E78,"") -> 7.2 | G167: 7.2
F168: =IF($N$87>=79,E79,"") -> 7.3 | G168: 7.3
F169: =IF($N$87>=80,E80,"") -> 7.4 | G169: 7.4
F170: =IF($N$87>=81,E81,"") -> 7.5 | G170: 7.5
F171: =IF($N$87>=82,E82,"") -> 7.6 | G171: 7.6
F172: =IF($N$87>=83,E83,"") -> 7.7 | G172: 7.7
F173: =IF($N$87>=84,E84,"") -> 7.8 | G173: 7.8
F174: =IF($N$87>=85,E85,"") -> 7.9 | G174: 7.9
F175: =IF($N$87>=86,E86,"") -> 8 | G175: 8
